[Event "*** Titled Tuesday Blitz"]
[Site "Chess.com"]
[Date "2020.12.29"]
[Round "11"]
[White "PowerThinking2650"]
[Black "LiderChessAcademy"]
[Result "1-0"]
[WhiteElo "2429"]
[BlackElo "2568"]
[TimeControl "180+1"]
[EndTime "12:05:20 PST"]
[Termination "PowerThinking2650 won on time"]

1. e4 {[%clk 0:03:00.9]} 1... c5 {[%clk 0:02:58.7]} 2. Nf3 {[%clk 0:03:01]} 2...
d6 {[%clk 0:02:59.3]} 3. d4 {[%clk 0:03:01.5]} 3... cxd4 {[%clk 0:03:00.2]} 4.
Nxd4 {[%clk 0:03:02.4]} 4... Nf6 {[%clk 0:03:00.4]} 5. Nc3 {[%clk 0:03:03]} 5...
a6 {[%clk 0:03:00.8]} 6. Bc4 {[%clk 0:03:03.6]} 6... e6 {[%clk 0:02:58.1]} 7.
O-O {[%clk 0:03:02.9]} 7... Nbd7 {[%clk 0:02:55.8]} 8. Bxe6 {[%clk 0:03:01.3]}
8... fxe6 {[%clk 0:02:50.3]} 9. Nxe6 {[%clk 0:03:01.9]} 9... Qa5 {[%clk
0:02:39.5]} 10. Nd5 {[%clk 0:03:01.6]} 10... Nxd5 {[%clk 0:01:57.7]} 11. exd5
{[%clk 0:03:02.5]} 11... Nf6 {[%clk 0:01:56.5]} 12. Bd2 {[%clk 0:02:48]} 12...
Qb6 {[%clk 0:01:53.9]} 13. Be3 {[%clk 0:02:45.5]} 13... Qxb2 {[%clk 0:01:49.2]}
14. Nc7+ {[%clk 0:02:44.2]} 14... Kf7 {[%clk 0:01:48.7]} 15. Nxa8 {[%clk
0:02:44.5]} 15... Be7 {[%clk 0:01:35.1]} 16. Nb6 {[%clk 0:02:38.7]} 16... Bf5
{[%clk 0:01:31.9]} 17. c4 {[%clk 0:02:26.5]} 17... Bd8 {[%clk 0:01:26]} 18. Qb3
{[%clk 0:02:24.6]} 18... Qe5 {[%clk 0:01:18.2]} 19. h3 {[%clk 0:02:17.8]} 19...
Re8 {[%clk 0:00:47.2]} 20. Rae1 {[%clk 0:02:16.9]} 20... Ne4 {[%clk 0:00:41.1]}
21. f4 {[%clk 0:01:49.4]} 21... Qf6 {[%clk 0:00:25.1]} 22. g4 {[%clk 0:01:49.2]}
22... Qh4 {[%clk 0:00:20.4]} 23. Bd4 {[%clk 0:01:31.1]} 23... Nd2 {[%clk
0:00:20.4]} 24. Bf2 {[%clk 0:01:13.1]} 24... Qh6 {[%clk 0:00:15]} 25. Qg3 {[%clk
0:00:56]} 25... Bh4 {[%clk 0:00:11.1]} 26. Qc3 {[%clk 0:00:41]} 26... Nxf1
{[%clk 0:00:07.8]} 27. Rxe8 {[%clk 0:00:37.9]} 27... Bxf2+ {[%clk 0:00:05.5]}
28. Kxf2 {[%clk 0:00:36.3]} 28... Qxf4+ {[%clk 0:00:05.7]} 29. Qf3 {[%clk
0:00:33.2]} 29... Qxf3+ {[%clk 0:00:03.7]} 30. Kxf3 {[%clk 0:00:33.5]} 30...
Kxe8 {[%clk 0:00:04.2]} 31. gxf5 {[%clk 0:00:33]} 31... Nd2+ {[%clk 0:00:04]}
32. Kf4 {[%clk 0:00:30.2]} 1-0

[Event "*** Titled Tuesday Blitz"]
[Site "Chess.com"]
[Date "2020.12.29"]
[Round "11"]
[White "Slovak_fighter2000"]
[Black "andrewtnb"]
[Result "0-1"]
[WhiteElo "2474"]
[BlackElo "2399"]
[TimeControl "180+1"]
[EndTime "12:05:26 PST"]
[Termination "andrewtnb won by checkmate"]

1. e4 {[%clk 0:03:00.9]} 1... c6 {[%clk 0:03:00.4]} 2. Nc3 {[%clk 0:02:58.7]}
2... d5 {[%clk 0:03:00.8]} 3. Nf3 {[%clk 0:02:58.9]} 3... dxe4 {[%clk
0:02:56.8]} 4. Nxe4 {[%clk 0:02:59.8]} 4... Nf6 {[%clk 0:02:55.9]} 5. Ng3 {[%clk
0:02:58.9]} 5... g6 {[%clk 0:02:54.6]} 6. d4 {[%clk 0:02:58.1]} 6... Bg7 {[%clk
0:02:54.9]} 7. c3 {[%clk 0:02:57.5]} 7... O-O {[%clk 0:02:52.9]} 8. Bc4 {[%clk
0:02:56.8]} 8... Nbd7 {[%clk 0:02:29.2]} 9. O-O {[%clk 0:02:46.6]} 9... b5
{[%clk 0:02:29.5]} 10. Bb3 {[%clk 0:02:45.8]} 10... c5 {[%clk 0:02:30]} 11. h3
{[%clk 0:02:40.9]} 11... Bb7 {[%clk 0:02:28.5]} 12. Be3 {[%clk 0:02:37.2]} 12...
Qc7 {[%clk 0:02:17.2]} 13. Qe2 {[%clk 0:02:29]} 13... c4 {[%clk 0:02:04.8]} 14.
Bc2 {[%clk 0:02:27.3]} 14... Nd5 {[%clk 0:02:03.6]} 15. Ne4 {[%clk 0:02:19.7]}
15... Nxe3 {[%clk 0:01:55.8]} 16. Qxe3 {[%clk 0:02:18.3]} 16... e5 {[%clk
0:01:51.7]} 17. dxe5 {[%clk 0:02:08.1]} 17... Nxe5 {[%clk 0:01:52.6]} 18. Nxe5
{[%clk 0:02:08.1]} 18... Qxe5 {[%clk 0:01:39.7]} 19. Qc5 {[%clk 0:01:55.9]}
19... Qxc5 {[%clk 0:01:29]} 20. Nxc5 {[%clk 0:01:56.8]} 20... Bc6 {[%clk
0:01:29.1]} 21. Be4 {[%clk 0:01:18.6]} 21... Bxe4 {[%clk 0:01:27.3]} 22. Nxe4
{[%clk 0:01:19.5]} 22... Rfd8 {[%clk 0:01:15.8]} 23. Rfd1 {[%clk 0:01:17.1]}
23... b4 {[%clk 0:01:10]} 24. Rac1 {[%clk 0:01:07.9]} 24... Rxd1+ {[%clk
0:01:03.9]} 25. Rxd1 {[%clk 0:01:08.8]} 25... bxc3 {[%clk 0:01:02.4]} 26. bxc3
{[%clk 0:01:03.5]} 26... f5 {[%clk 0:00:59.4]} 27. Ng3 {[%clk 0:00:42.6]} 27...
Rb8 {[%clk 0:00:48.4]} 28. Rd2 {[%clk 0:00:40.5]} 28... Rb1+ {[%clk 0:00:38.5]}
29. Kh2 {[%clk 0:00:40]} 29... Bxc3 {[%clk 0:00:38.5]} 30. Rc2 {[%clk
0:00:39.3]} 30... Bd4 {[%clk 0:00:38.9]} 31. Rxc4 {[%clk 0:00:33.3]} 31... Bxf2
{[%clk 0:00:39.1]} 32. Rc2 {[%clk 0:00:27.3]} 32... Bg1+ {[%clk 0:00:36.2]} 33.
Kh1 {[%clk 0:00:27.5]} 33... Bd4+ {[%clk 0:00:35.5]} 34. Kh2 {[%clk 0:00:27.2]}
34... Be5 {[%clk 0:00:36]} 35. Re2 {[%clk 0:00:24.9]} 35... Bf4 {[%clk
0:00:34.5]} 36. h4 {[%clk 0:00:21]} 36... Rd1 {[%clk 0:00:28.6]} 37. Kh3 {[%clk
0:00:20]} 37... Rd3 {[%clk 0:00:26.9]} 38. h5 {[%clk 0:00:15.2]} 38... Rxg3+
{[%clk 0:00:25.3]} 39. Kh4 {[%clk 0:00:14.7]} 39... g5# {[%clk 0:00:24.2]} 0-1

[Event "*** Titled Tuesday Blitz"]
[Site "Chess.com"]
[Date "2020.12.29"]
[Round "11"]
[White "vova-79"]
[Black "catzapto"]
[Result "0-1"]
[WhiteElo "2504"]
[BlackElo "2145"]
[TimeControl "180+1"]
[EndTime "12:05:29 PST"]
[Termination "catzapto won on time"]

1. d4 {[%clk 0:03:00.2]} 1... Nf6 {[%clk 0:02:59.6]} 2. c4 {[%clk 0:02:59.6]}
2... e6 {[%clk 0:03:00.5]} 3. Nc3 {[%clk 0:02:58.8]} 3... c6 {[%clk 0:03:01.4]}
4. e4 {[%clk 0:02:57.3]} 4... Bb4 {[%clk 0:03:01.1]} 5. e5 {[%clk 0:02:56.1]}
5... Ne4 {[%clk 0:03:01.4]} 6. Qc2 {[%clk 0:02:55.5]} 6... d5 {[%clk 0:02:59.9]}
7. Bd3 {[%clk 0:02:48.9]} 7... f5 {[%clk 0:02:58.4]} 8. exf6 {[%clk 0:02:44.8]}
8... Nxf6 {[%clk 0:02:57.8]} 9. Nf3 {[%clk 0:02:39.7]} 9... O-O {[%clk
0:02:57.4]} 10. O-O {[%clk 0:02:39.1]} 10... a6 {[%clk 0:02:53.3]} 11. Bg5
{[%clk 0:02:33.2]} 11... h6 {[%clk 0:02:49.4]} 12. Bh4 {[%clk 0:02:32.5]} 12...
Bd6 {[%clk 0:02:48.4]} 13. Rfe1 {[%clk 0:02:27.6]} 13... b5 {[%clk 0:02:41]} 14.
c5 {[%clk 0:02:14.5]} 14... Bc7 {[%clk 0:02:37.9]} 15. Re2 {[%clk 0:01:58.6]}
15... g5 {[%clk 0:02:20.1]} 16. Bg3 {[%clk 0:01:57.5]} 16... Nh5 {[%clk
0:02:17.7]} 17. Rae1 {[%clk 0:01:43.3]} 17... Nxg3 {[%clk 0:02:08.6]} 18. hxg3
{[%clk 0:01:42.3]} 18... Qf6 {[%clk 0:02:09.5]} 19. Ne5 {[%clk 0:01:36.1]} 19...
Bxe5 {[%clk 0:02:01.8]} 20. Rxe5 {[%clk 0:01:37]} 20... Kh8 {[%clk 0:01:56.8]}
21. Qe2 {[%clk 0:01:22.3]} 21... Ra7 {[%clk 0:01:52.1]} 22. Nd1 {[%clk
0:00:59.8]} 22... Re7 {[%clk 0:01:52.1]} 23. Ne3 {[%clk 0:00:57.8]} 23... Nd7
{[%clk 0:01:48.1]} 24. Ng4 {[%clk 0:00:57.5]} 24... Qg7 {[%clk 0:01:44.2]} 25.
Rxe6 {[%clk 0:00:54.2]} 25... Rxe6 {[%clk 0:01:36.2]} 26. Qxe6 {[%clk
0:00:53.3]} 26... Nxc5 {[%clk 0:01:36.9]} 27. Qxh6+ {[%clk 0:00:14.1]} 27...
Qxh6 {[%clk 0:01:33.1]} 28. Nxh6 {[%clk 0:00:15]} 28... Nxd3 {[%clk 0:01:33.3]}
29. Re7 {[%clk 0:00:15.2]} 29... Nxf2 {[%clk 0:01:01.9]} 30. Nf7+ {[%clk
0:00:14]} 30... Kg8 {[%clk 0:01:01.7]} 31. Nh6+ {[%clk 0:00:13.3]} 31... Kh8
{[%clk 0:01:02.1]} 32. Nf7+ {[%clk 0:00:13.4]} 32... Kg7 {[%clk 0:00:58.7]} 33.
Ne5+ {[%clk 0:00:04.7]} 33... Kf6 {[%clk 0:00:58.4]} 34. Rc7 {[%clk 0:00:02.6]}
34... Ne4 {[%clk 0:00:54.3]} 35. Rxc6+ {[%clk 0:00:02.6]} 35... Ke7 {[%clk
0:00:53.3]} 36. g4 {[%clk 0:00:02]} 36... Nf6 {[%clk 0:00:43.1]} 37. Ng6+ {[%clk
0:00:01.4]} 37... Kd7 {[%clk 0:00:38.1]} 38. Rb6 {[%clk 0:00:01.5]} 38... Kc7
{[%clk 0:00:36.9]} 0-1

[Event "*** Titled Tuesday Blitz"]
[Site "Chess.com"]
[Date "2020.12.29"]
[Round "11"]
[White "FGHSMN"]
[Black "penguingm1"]
[Result "0-1"]
[WhiteElo "2655"]
[BlackElo "2919"]
[TimeControl "180+1"]
[EndTime "12:05:32 PST"]
[Termination "penguingm1 won by checkmate"]

1. e4 {[%clk 0:03:00.9]} 1... b5 {[%clk 0:02:49]} 2. Bxb5 {[%clk 0:02:56.5]}
2... f5 {[%clk 0:02:49.1]} 3. exf5 {[%clk 0:02:52.8]} 3... c6 {[%clk 0:02:48.2]}
4. Qh5+ {[%clk 0:02:44.7]} 4... g6 {[%clk 0:02:47.4]} 5. fxg6 {[%clk 0:02:44.2]}
5... Bg7 {[%clk 0:02:48]} 6. gxh7+ {[%clk 0:02:41.5]} 6... Kf8 {[%clk
0:02:48.5]} 7. hxg8=Q+ {[%clk 0:02:21.5]} 7... Kxg8 {[%clk 0:02:49.4]} 8. Bc4+
{[%clk 0:01:41.9]} 8... d5 {[%clk 0:02:44]} 9. Bxd5+ {[%clk 0:01:41.9]} 9...
cxd5 {[%clk 0:02:38]} 10. Qe2 {[%clk 0:01:41.4]} 10... Nc6 {[%clk 0:02:34.2]}
11. c3 {[%clk 0:01:40.8]} 11... e5 {[%clk 0:02:30.6]} 12. d3 {[%clk 0:01:40.2]}
12... Ba6 {[%clk 0:02:30.7]} 13. Nd2 {[%clk 0:01:12.8]} 13... e4 {[%clk
0:02:28]} 14. c4 {[%clk 0:01:09.6]} 14... Nd4 {[%clk 0:02:22.2]} 15. Qd1 {[%clk
0:01:03.8]} 15... exd3 {[%clk 0:02:07.9]} 16. Ngf3 {[%clk 0:01:03.3]} 16... Nc2+
{[%clk 0:01:19.9]} 17. Kf1 {[%clk 0:01:00.1]} 17... Qe7 {[%clk 0:01:13.5]} 18.
Rb1 {[%clk 0:00:46]} 18... dxc4 {[%clk 0:01:04.4]} 19. g3 {[%clk 0:00:42.1]}
19... Rf8 {[%clk 0:01:01.6]} 20. Kg2 {[%clk 0:00:39.5]} 20... Bb7 {[%clk
0:01:00.3]} 21. Rf1 {[%clk 0:00:27]} 21... Qe6 {[%clk 0:00:17.2]} 22. h4 {[%clk
0:00:19.8]} 22... Rxh4 {[%clk 0:00:15.6]} 23. gxh4 {[%clk 0:00:18.4]} 23... Qg4+
{[%clk 0:00:14.2]} 24. Kh2 {[%clk 0:00:18.7]} 24... Be5+ {[%clk 0:00:10.9]} 25.
Kh1 {[%clk 0:00:14.9]} 25... Qh3+ {[%clk 0:00:10.6]} 26. Kg1 {[%clk 0:00:14.4]}
26... Kh8 {[%clk 0:00:08.9]} 27. Ne4 {[%clk 0:00:08.1]} 27... Bxe4 {[%clk
0:00:05.5]} 28. Bg5 {[%clk 0:00:08.2]} 28... Rxf3 {[%clk 0:00:04.2]} 29. Re1
{[%clk 0:00:06.4]} 29... Qh1+ {[%clk 0:00:03.3]} 30. Kxh1 {[%clk 0:00:06.2]}
30... Rh3+ {[%clk 0:00:04.2]} 31. Kg1 {[%clk 0:00:07]} 31... Rh1# {[%clk
0:00:05.1]} 0-1

[Event "*** Titled Tuesday Blitz"]
[Site "Chess.com"]
[Date "2020.12.29"]
[Round "11"]
[White "rubhani"]
[Black "arctic_t00"]
[Result "1-0"]
[WhiteElo "2515"]
[BlackElo "2614"]
[TimeControl "180+1"]
[EndTime "12:05:33 PST"]
[Termination "rubhani won by resignation"]

1. e3 {[%clk 0:02:58.3]} 1... Nf6 {[%clk 0:02:58.2]} 2. a3 {[%clk 0:02:55.4]}
2... g6 {[%clk 0:02:58.3]} 3. b4 {[%clk 0:02:55.5]} 3... Bg7 {[%clk 0:02:58.9]}
4. Bb2 {[%clk 0:02:55.9]} 4... O-O {[%clk 0:02:59.6]} 5. Nf3 {[%clk 0:02:55.6]}
5... d6 {[%clk 0:02:59.3]} 6. Be2 {[%clk 0:02:54.5]} 6... e5 {[%clk 0:02:58.8]}
7. O-O {[%clk 0:02:54.9]} 7... b6 {[%clk 0:02:48.6]} 8. d3 {[%clk 0:02:49.2]}
8... Bb7 {[%clk 0:02:46.6]} 9. Nbd2 {[%clk 0:02:49.8]} 9... Nbd7 {[%clk
0:02:46.1]} 10. e4 {[%clk 0:02:45.7]} 10... Nh5 {[%clk 0:02:43.6]} 11. Re1
{[%clk 0:02:37.4]} 11... Nf4 {[%clk 0:02:42.8]} 12. Bf1 {[%clk 0:02:37.5]} 12...
Qe7 {[%clk 0:02:40.3]} 13. d4 {[%clk 0:02:36.5]} 13... c5 {[%clk 0:02:27.9]} 14.
dxe5 {[%clk 0:02:28.8]} 14... dxe5 {[%clk 0:02:26.7]} 15. Nc4 {[%clk 0:02:22.2]}
15... Rad8 {[%clk 0:02:15.8]} 16. Qd6 {[%clk 0:02:21.5]} 16... Qxd6 {[%clk
0:01:55.1]} 17. Nxd6 {[%clk 0:02:20.8]} 17... Ba8 {[%clk 0:01:55.8]} 18. Rad1
{[%clk 0:02:09.3]} 18... Ne6 {[%clk 0:01:41.8]} 19. Bc4 {[%clk 0:02:05.3]} 19...
Nd4 {[%clk 0:01:16.5]} 20. Ng5 {[%clk 0:01:59.3]} 20... b5 {[%clk 0:00:34.1]}
21. Bxf7+ {[%clk 0:01:49.5]} 21... Kh8 {[%clk 0:00:33]} 22. Bxd4 {[%clk
0:01:42.7]} 22... exd4 {[%clk 0:00:31.2]} 23. Ne6 {[%clk 0:01:42.9]} 23... Ne5
{[%clk 0:00:21.3]} 24. Nxd8 {[%clk 0:00:51.8]} 24... Rxd8 {[%clk 0:00:20.6]} 25.
bxc5 {[%clk 0:00:37.4]} 25... Rxd6 {[%clk 0:00:19.6]} 26. cxd6 {[%clk
0:00:38.3]} 26... Nxf7 {[%clk 0:00:20.3]} 27. e5 {[%clk 0:00:29]} 27... Bxe5
{[%clk 0:00:16.4]} 28. Rxe5 {[%clk 0:00:24.2]} 28... Nxe5 {[%clk 0:00:15.4]} 29.
Re1 {[%clk 0:00:24.6]} 29... Nc6 {[%clk 0:00:03.6]} 30. Re8+ {[%clk 0:00:24.3]}
30... Kg7 {[%clk 0:00:04.5]} 31. Rxa8 {[%clk 0:00:25.2]} 31... Kf6 {[%clk
0:00:04.9]} 32. Rc8 {[%clk 0:00:25.3]} 32... Ne5 {[%clk 0:00:03.2]} 33. Rc5
{[%clk 0:00:20.5]} 33... a6 {[%clk 0:00:03]} 34. Rxe5 {[%clk 0:00:20.1]} 1-0

[Event "*** Titled Tuesday Blitz"]
[Site "Chess.com"]
[Date "2020.12.29"]
[Round "11"]
[White "Savva09022009"]
[Black "szachuspl"]
[Result "0-1"]
[WhiteElo "2608"]
[BlackElo "2515"]
[TimeControl "180+1"]
[EndTime "12:05:33 PST"]
[Termination "szachuspl won by checkmate"]

1. d4 {[%clk 0:03:00.9]} 1... Nf6 {[%clk 0:02:59.4]} 2. Nc3 {[%clk 0:03:01.2]}
2... d5 {[%clk 0:02:58.9]} 3. Bf4 {[%clk 0:03:01.3]} 3... c5 {[%clk 0:02:55.2]}
4. e3 {[%clk 0:03:01.1]} 4... a6 {[%clk 0:02:54.4]} 5. Nf3 {[%clk 0:03:00.4]}
5... Nc6 {[%clk 0:02:54.9]} 6. Bd3 {[%clk 0:02:58.1]} 6... Bg4 {[%clk
0:02:54.9]} 7. Be2 {[%clk 0:02:56]} 7... Bxf3 {[%clk 0:02:49.1]} 8. Bxf3 {[%clk
0:02:56.9]} 8... e6 {[%clk 0:02:49.8]} 9. O-O {[%clk 0:02:55.5]} 9... cxd4
{[%clk 0:02:48.2]} 10. exd4 {[%clk 0:02:55.1]} 10... Bd6 {[%clk 0:02:47.6]} 11.
Ne2 {[%clk 0:02:53.8]} 11... O-O {[%clk 0:02:45.1]} 12. c3 {[%clk 0:02:53.4]}
12... b5 {[%clk 0:02:44.1]} 13. Qd2 {[%clk 0:02:50.7]} 13... Na5 {[%clk
0:02:41.3]} 14. Bxd6 {[%clk 0:02:47.7]} 14... Qxd6 {[%clk 0:02:41.1]} 15. b3
{[%clk 0:02:46.3]} 15... Rfc8 {[%clk 0:02:38.9]} 16. Rac1 {[%clk 0:02:43.9]}
16... Qb6 {[%clk 0:02:32.9]} 17. Nf4 {[%clk 0:02:40.9]} 17... Ra7 {[%clk
0:02:32.3]} 18. Nd3 {[%clk 0:02:40.7]} 18... Rac7 {[%clk 0:02:30.8]} 19. Rc2
{[%clk 0:02:37.8]} 19... Nd7 {[%clk 0:02:28.1]} 20. Rfc1 {[%clk 0:02:37.3]}
20... Nc6 {[%clk 0:02:24.5]} 21. h4 {[%clk 0:02:26.1]} 21... h6 {[%clk
0:02:20.2]} 22. g3 {[%clk 0:02:24.9]} 22... Ne7 {[%clk 0:02:20.1]} 23. Bg2
{[%clk 0:02:18.9]} 23... Nf5 {[%clk 0:02:19.4]} 24. Kh2 {[%clk 0:02:16.6]} 24...
a5 {[%clk 0:02:18.6]} 25. Bh3 {[%clk 0:02:13.8]} 25... Nd6 {[%clk 0:02:13.3]}
26. Bg2 {[%clk 0:02:11.9]} 26... Ne4 {[%clk 0:01:53.4]} 27. Bxe4 {[%clk
0:02:09.8]} 27... dxe4 {[%clk 0:01:53.8]} 28. Nf4 {[%clk 0:02:09.4]} 28... Qd6
{[%clk 0:01:39.1]} 29. c4 {[%clk 0:02:05.9]} 29... bxc4 {[%clk 0:01:39.1]} 30.
bxc4 {[%clk 0:02:06.8]} 30... a4 {[%clk 0:01:29.3]} 31. Qe3 {[%clk 0:01:58.2]}
31... Nf6 {[%clk 0:01:28.9]} 32. Kg1 {[%clk 0:01:53.8]} 32... e5 {[%clk
0:01:27.3]} 33. dxe5 {[%clk 0:01:52]} 33... Qxe5 {[%clk 0:01:27.5]} 34. c5
{[%clk 0:01:52.4]} 34... g5 {[%clk 0:01:25.5]} 35. hxg5 {[%clk 0:01:48.2]} 35...
hxg5 {[%clk 0:01:25.6]} 36. Nd3 {[%clk 0:01:48.4]} 36... Qf5 {[%clk 0:01:21.3]}
37. Nb4 {[%clk 0:01:44.8]} 37... Ng4 {[%clk 0:01:20.4]} 38. Qd4 {[%clk
0:01:41.7]} 38... Rd7 {[%clk 0:01:15.3]} 39. Qc4 {[%clk 0:01:18]} 39... Ne5
{[%clk 0:01:03.6]} 40. Qe2 {[%clk 0:01:12]} 40... Nf3+ {[%clk 0:01:02.7]} 41.
Kg2 {[%clk 0:01:12.2]} 41... Nd4 {[%clk 0:01:01.8]} 42. Qc4 {[%clk 0:01:08.5]}
42... Qf3+ {[%clk 0:01:00.9]} 43. Kg1 {[%clk 0:00:59.5]} 43... e3 {[%clk
0:00:53.5]} 44. c6 {[%clk 0:00:36.3]} 44... Rd6 {[%clk 0:00:53.7]} 45. c7 {[%clk
0:00:24.6]} 45... Rh6 {[%clk 0:00:53.2]} 46. Qxf7+ {[%clk 0:00:08.2]} 46... Kxf7
{[%clk 0:00:51.9]} 47. Nd3 {[%clk 0:00:07.2]} 47... Rh1# {[%clk 0:00:50.7]} 0-1

[Event "*** Titled Tuesday Blitz"]
[Site "Chess.com"]
[Date "2020.12.29"]
[Round "11"]
[White "IMVoja"]
[Black "chessdjw"]
[Result "0-1"]
[WhiteElo "2411"]
[BlackElo "2600"]
[TimeControl "180+1"]
[EndTime "12:05:34 PST"]
[Termination "chessdjw won on time"]

1. d4 {[%clk 0:03:00.9]} 1... Nf6 {[%clk 0:02:34.9]} 2. Nf3 {[%clk 0:02:58.9]}
2... g6 {[%clk 0:02:34.8]} 3. Bg5 {[%clk 0:02:56]} 3... Bg7 {[%clk 0:02:34.5]}
4. Nbd2 {[%clk 0:02:56.1]} 4... O-O {[%clk 0:02:34.5]} 5. e4 {[%clk 0:02:52.9]}
5... d5 {[%clk 0:02:34.6]} 6. Bxf6 {[%clk 0:02:51.6]} 6... exf6 {[%clk
0:02:32.5]} 7. Be2 {[%clk 0:02:37.3]} 7... dxe4 {[%clk 0:02:26.1]} 8. Nxe4
{[%clk 0:02:37]} 8... Re8 {[%clk 0:02:26.5]} 9. Nc3 {[%clk 0:02:31.7]} 9... f5
{[%clk 0:02:18.1]} 10. O-O {[%clk 0:02:30.7]} 10... Nc6 {[%clk 0:02:17.3]} 11.
d5 {[%clk 0:01:49.9]} 11... Nb4 {[%clk 0:02:08.4]} 12. Bc4 {[%clk 0:01:36.4]}
12... Bd7 {[%clk 0:01:39]} 13. a3 {[%clk 0:01:33.4]} 13... Na6 {[%clk
0:01:38.9]} 14. Bxa6 {[%clk 0:01:30.2]} 14... bxa6 {[%clk 0:01:38.6]} 15. Nd4
{[%clk 0:01:30.6]} 15... Rb8 {[%clk 0:01:30.3]} 16. Rb1 {[%clk 0:01:22.6]} 16...
Qf6 {[%clk 0:01:27.7]} 17. Nb3 {[%clk 0:01:11.2]} 17... Qb6 {[%clk 0:01:25.7]}
18. Qf3 {[%clk 0:01:00.9]} 18... a5 {[%clk 0:01:21.7]} 19. a4 {[%clk 0:00:51.4]}
19... h5 {[%clk 0:00:42.6]} 20. Rfe1 {[%clk 0:00:45.2]} 20... Qb4 {[%clk
0:00:39.8]} 21. h3 {[%clk 0:00:36.8]} 21... Bxa4 {[%clk 0:00:22.4]} 22. Rxe8+
{[%clk 0:00:36]} 22... Bxe8 {[%clk 0:00:20.6]} 23. Na2 {[%clk 0:00:17.5]} 23...
Qb6 {[%clk 0:00:20.1]} 24. Nac1 {[%clk 0:00:15.7]} 24... a4 {[%clk 0:00:20.3]}
25. Nd2 {[%clk 0:00:16.2]} 25... Bxb2 {[%clk 0:00:18.8]} 26. Nc4 {[%clk
0:00:15.6]} 26... Qd4 {[%clk 0:00:19.3]} 27. Qd3 {[%clk 0:00:07.8]} 27... Qe5
{[%clk 0:00:07.7]} 28. Ne2 {[%clk 0:00:01.7]} 28... Rb6 {[%clk 0:00:06.7]} 0-1

[Event "*** Titled Tuesday Blitz"]
[Site "Chess.com"]
[Date "2020.12.29"]
[Round "11"]
[White "MuhittinBuker"]
[Black "Piacramling"]
[Result "0-1"]
[WhiteElo "2119"]
[BlackElo "2262"]
[TimeControl "180+1"]
[EndTime "12:05:35 PST"]
[Termination "Piacramling won on time"]

1. d4 {[%clk 0:03:00.9]} 1... Nf6 {[%clk 0:02:59]} 2. c4 {[%clk 0:03:01.3]} 2...
c5 {[%clk 0:02:59.1]} 3. d5 {[%clk 0:03:00.6]} 3... b5 {[%clk 0:02:59.2]} 4.
cxb5 {[%clk 0:02:59.5]} 4... a6 {[%clk 0:02:58.9]} 5. bxa6 {[%clk 0:02:58.9]}
5... g6 {[%clk 0:02:57.3]} 6. Nc3 {[%clk 0:02:51.9]} 6... Bg7 {[%clk 0:02:57.3]}
7. d6 {[%clk 0:02:50.6]} 7... O-O {[%clk 0:02:53.9]} 8. Nf3 {[%clk 0:02:47]}
8... Nxa6 {[%clk 0:02:44.5]} 9. g3 {[%clk 0:02:46]} 9... Bb7 {[%clk 0:02:42.1]}
10. Bg2 {[%clk 0:02:46.5]} 10... exd6 {[%clk 0:02:39.4]} 11. O-O {[%clk
0:02:32.9]} 11... d5 {[%clk 0:02:31.3]} 12. Ng5 {[%clk 0:02:08.2]} 12... Nc7
{[%clk 0:02:22.5]} 13. Bf4 {[%clk 0:01:54.5]} 13... d6 {[%clk 0:02:18.6]} 14.
Qb3 {[%clk 0:01:52.1]} 14... Rb8 {[%clk 0:02:12.5]} 15. Rfd1 {[%clk 0:01:47]}
15... Ba8 {[%clk 0:02:05]} 16. Qa4 {[%clk 0:01:42.1]} 16... d4 {[%clk 0:01:49]}
17. Nce4 {[%clk 0:01:37.7]} 17... Nxe4 {[%clk 0:01:47.6]} 18. Nxe4 {[%clk
0:01:36.6]} 18... Bxe4 {[%clk 0:01:41.3]} 19. Bxe4 {[%clk 0:01:35.3]} 19... Ne6
{[%clk 0:01:22.2]} 20. Bc1 {[%clk 0:01:25.4]} 20... d5 {[%clk 0:01:18]} 21. Bg2
{[%clk 0:01:24.8]} 21... c4 {[%clk 0:01:12]} 22. Qc6 {[%clk 0:01:09.4]} 22... d3
{[%clk 0:00:33.4]} 23. exd3 {[%clk 0:01:00.8]} 23... Nd4 {[%clk 0:00:31]} 24.
Qxd5 {[%clk 0:00:51.3]} 24... c3 {[%clk 0:00:29.6]} 25. bxc3 {[%clk 0:00:35.3]}
25... Qxd5 {[%clk 0:00:26.3]} 26. Bxd5 {[%clk 0:00:33.7]} 26... Ne2+ {[%clk
0:00:26.4]} 27. Kf1 {[%clk 0:00:20.1]} 27... Nxc3 {[%clk 0:00:26.2]} 28. Bf4
{[%clk 0:00:11.7]} 28... Nxd5 {[%clk 0:00:24.9]} 29. Bxb8 {[%clk 0:00:11]} 29...
Bxa1 {[%clk 0:00:23.1]} 30. Bd6 {[%clk 0:00:08.4]} 30... Rd8 {[%clk 0:00:22.7]}
31. Bc5 {[%clk 0:00:05.1]} 31... Bf6 {[%clk 0:00:20.6]} 32. d4 {[%clk
0:00:04.8]} 32... Nc3 {[%clk 0:00:18.3]} 33. Rd2 {[%clk 0:00:02.7]} 33... Ne4
{[%clk 0:00:18.1]} 0-1